bitfinex/quotes_SOLUSD_20260305
["timestamp","ask_amount","ask_price","bid_price","bid_amount"]
[1772701478061,0.4893882,90.998,90.935,0.45829529]
[1772701478233,0.4893882,90.989,90.935,0.45829529]
[1772701479647,0.4893882,90.987,90.937,0.74261843]
[1772701479958,0.4893882,90.987,90.938,0.45829529]
[1772701480366,0.4893882,90.979,90.938,0.45829529]
[1772701481659,0.4893882,90.977,90.94,0.45829529]
[1772701484461,0.4893882,90.975,90.94,0.45829529]
[1772701485968,0.4893882,90.973,90.94,0.45829529]
[1772701486462,10.9921516,90.974,90.933,10.99699564]
[1772701486463,0.4893882,90.969,90.933,10.99699564]
[1772701486647,0.4893882,90.969,90.934,0.45829529]
[1772701487359,0.4893882,90.972,90.934,0.45829529]
[1772701489172,10.99251409,90.971,90.936,0.4771246]
[1772701489357,4.17566797,90.99,90.936,0.4771246]
[1772701489358,0.45084236,90.988,90.936,0.4771246]
[1772701493466,0.45084236,90.986,90.937,38.48818412]
[1772701493771,0.45084236,90.986,90.938,0.4771246]
[1772701494551,0.45084236,90.993,90.939,0.4771246]
[1772701494774,10.98913174,90.999,90.939,0.4771246]
[1772701494982,0.45084236,90.998,90.939,0.4771246]
[1772701495573,0.45084236,90.996,90.942,0.4771246]
[1772701497375,11.43949694,91.003,90.942,0.4771246]
[1772701497578,0.45084236,91.002,90.942,0.4771246]
[1772701498279,10.98889023,91.001,90.945,0.4771246]
[1772701498475,11.43973259,91.001,90.945,0.4771246]
[1772701499160,0.45084236,91.0,90.945,0.4771246]
[1772701500167,0.45084236,91.016,90.948,0.4771246]
[1772701500477,0.45084236,91.016,90.951,0.4771246]
[1772701501689,0.45084236,91.016,90.95,0.28432314]
[1772701501690,0.45084236,91.016,90.955,3.69383402]
[1772701501983,0.45084236,91.016,90.957,0.4771246]
[1772701502281,0.45084236,91.014,90.96,0.4771246]
[1772701503986,0.45084236,91.038,90.96,0.4771246]
[1772701504362,0.45084236,91.029,90.963,0.4771246]
[1772701505184,0.45084236,91.019,90.963,0.4771246]
[1772701505481,0.45084236,91.037,90.963,0.4771246]
[1772701505658,0.45084236,91.037,90.967,4.82477569]
[1772701505867,0.45084236,91.058,90.976,0.4771246]
[1772701506192,0.45084236,91.058,90.979,0.4771246]
[1772701506392,0.45084236,91.057,90.984,0.4771246]
[1772701506569,0.45084236,91.049,90.985,0.4771246]
[1772701508191,0.45084236,91.049,90.99,0.4771246]
[1772701508493,0.45084236,91.071,90.999,0.4771246]
[1772701508697,0.45084236,91.069,91.003,0.4771246]
[1772701508983,0.45084236,91.069,91.006,0.4771246]
[1772701509366,0.45084236,91.069,91.008,0.4771246]
[1772701509566,0.45084236,91.069,91.01,0.4771246]
[1772701509775,0.45084236,91.079,91.01,0.4771246]
[1772701509981,0.45084236,91.079,91.015,0.4771246]
[1772701510161,0.45084236,91.077,91.018,0.4771246]
[1772701510364,0.45084236,91.077,91.02,0.4771246]
[1772701511790,0.45084236,91.069,91.02,0.4771246]
[1772701512394,0.45084236,91.067,91.023,0.4771246]
[1772701512591,10.98080555,91.068,91.023,0.4771246]
[1772701512592,0.45084236,91.059,91.023,0.4771246]
[1772701512992,0.45084236,91.059,91.021,10.98647564]
[1772701513381,0.45084236,91.059,91.022,0.4771246]
[1772701513595,0.45084236,91.057,91.023,10.98623424]
[1772701513770,0.45084236,91.057,91.023,11.46335884]
[1772701514889,0.45084236,91.057,91.018,4.0686483]
[1772701515196,0.45084236,91.057,91.018,15.05547481]
[1772701515377,0.45084236,91.097,91.02,0.4771246]
[1772701515700,0.45084236,91.095,91.026,0.4771246]
[1772701515876,0.45084236,91.095,91.028,0.4771246]
[1772701516585,0.45084236,91.095,91.03,0.4771246]
[1772701516999,0.45084236,91.095,91.032,0.4771246]
[1772701517504,0.45084236,91.095,91.033,0.4771246]
[1772701518071,11.42851377,91.094,91.036,0.4771246]
[1772701518273,0.45084236,91.093,91.038,0.4771246]
[1772701518676,0.45084236,91.093,91.04,0.4771246]
[1772701519287,0.47873764,91.091,91.043,0.47368388]
[1772701519495,0.47873764,91.091,91.044,0.47368388]
[1772701520683,0.47873764,91.091,91.045,0.47368388]
[1772701521391,0.47873764,91.103,91.048,0.47368388]
[1772701521590,0.47873764,91.103,91.05,0.47368388]
[1772701521995,0.47873764,91.103,91.052,0.47368388]
[1772701522370,0.47873764,91.103,91.053,0.47368388]
[1772701522776,0.47873764,91.099,91.052,4.35537387]
[1772701523084,0.47873764,91.089,91.052,4.35537387]
[1772701523282,0.47873764,91.087,91.052,4.35537387]
[1772701523780,4.17566797,91.08,91.052,4.35537387]
[1772701524102,4.17566797,91.07,91.052,3.73971767]
[1772701524982,93.31635339,91.088,91.026,10.98577261]
[1772701525184,4.17566797,91.07,91.026,10.98577261]
[1772701525388,38.4323974,91.069,91.026,10.98577261]
[1772701525578,38.4323974,91.069,91.027,0.50000003]
[1772701526292,4.17566797,91.06,91.019,0.50000003]
[1772701526493,4.17566797,91.06,91.019,11.48667216]
[1772701527077,4.17566797,91.06,91.02,0.50000003]
[1772701527279,10.98068497,91.069,91.022,0.50000003]
[1772701527582,10.97967967,91.078,91.023,0.50000003]
[1772701527891,4.17566797,91.12,91.026,0.50000003]
[1772701528700,9.8637294,91.15,91.025,4.94499591]
[1772701528701,4.17566797,91.11,91.03,0.50000003]
[1772701529094,4.17566797,91.11,91.032,0.50000003]
[1772701529399,38.41552425,91.109,91.035,0.50000003]
[1772701529590,38.41552425,91.109,91.037,0.50000003]
[1772701529982,38.41552425,91.109,91.039,0.50000003]
[1772701530491,38.41552425,91.109,91.041,0.50000003]
[1772701530880,38.41552425,91.109,91.043,0.50000003]
[1772701531181,38.41552425,91.109,91.046,0.50000003]
[1772701531691,8.92472021,91.1,91.048,0.50000003]
[1772701531895,38.41552425,91.109,91.048,0.50000003]
[1772701532597,38.41552425,91.109,91.049,0.50000003]
[1772701532992,38.41552425,91.109,91.052,0.50000003]
[1772701535524,38.41552425,91.109,91.054,0.50000003]
[1772701536788,8.92523361,91.1,91.054,0.50000003]
[1772701537695,10.9770689,91.099,91.056,0.50000003]
[1772701537895,10.97598454,91.108,91.057,0.50000003]
[1772701538101,27.43261568,91.133,91.057,0.50000003]
[1772701538291,8.92523361,91.13,91.057,0.50000003]
[1772701538807,8.92523361,91.11,91.057,0.50000003]
[1772701538984,93.27129876,91.132,91.057,0.50000003]
[1772701539186,8.92523361,91.11,91.057,0.50000003]
[1772701539608,38.41974115,91.099,91.057,0.50000003]
[1772701539816,8.92523361,91.09,91.057,0.50000003]
[1772701540303,8.92523361,91.09,91.05,0.50000003]
[1772701540696,8.92523361,91.08,91.044,10.98362099]
[1772701540899,8.92523361,91.07,91.041,0.50000003]
[1772701541211,8.92523361,91.07,91.043,10.98370881]
[1772701541386,8.92523361,91.06,91.02,0.50000003]
[1772701541796,8.92523361,91.06,90.985,4.47031301]
[1772701541797,10.98189086,91.059,91.022,0.50000003]
[1772701542395,8.92523361,91.05,91.022,0.50000003]
[1772701542715,38.43661801,91.059,91.022,0.50000003]
[1772701543487,8.92523361,91.05,91.016,10.98701893]
[1772701544186,8.92523361,91.05,91.002,0.50000003]
[1772701544403,8.92523361,91.04,91.002,11.4887695]
[1772701544602,8.92523361,91.03,90.996,10.98949404]
[1772701544815,8.92523361,91.03,90.972,30.0]
[1772701544816,0.14216157,91.052,90.959,0.50000003]
[1772701545010,8.92523361,90.98,90.936,0.50000003]
[1772701545393,8.92523361,91.02,90.938,0.50000003]
[1772701545394,8.92523361,90.97,90.938,0.50000003]
[1772701546408,8.92523361,90.96,90.932,10.99716633]
[1772701546616,8.92523361,90.96,90.93,10.99747058]
[1772701546795,8.92523361,90.96,90.929,0.50000003]
[1772701547208,8.92523361,90.95,90.925,10.99803997]
[1772701547514,10.99517311,90.949,90.919,11.49870726]
[1772701547699,8.92523361,90.94,90.91,0.50000003]
[1772701548312,8.92523361,90.96,90.903,0.50000003]
[1772701548715,8.92523361,90.95,90.903,0.50000003]
[1772701549014,8.92523361,90.94,90.903,0.50000003]
[1772701549310,8.92523361,90.95,90.903,0.50000003]
[1772701549496,10.99517311,90.949,90.905,0.50000003]
[1772701550601,0.45976189,90.948,90.904,38.45399174]
[1772701551410,0.45976189,90.948,90.904,10.95245166]
[1772701551614,0.45976189,90.948,90.892,27.50489773]
[1772701551615,0.45976189,90.946,90.892,27.50489773]
[1772701551994,0.45976189,90.939,90.892,27.50489773]
[1772701552194,0.45976189,90.929,90.888,11.00255259]
[1772701552390,8.92523361,90.92,90.888,11.00255259]
[1772701552611,0.45976189,90.919,90.888,38.50893407]
[1772701552828,0.45976189,90.929,90.889,0.46949509]
[1772701554103,0.45976189,90.929,90.891,0.46949509]
[1772701554402,0.45976189,90.939,90.892,0.46949509]
[1772701554718,10.99408518,90.958,90.892,0.46949509]
[1772701554913,0.45976189,90.957,90.892,0.46949509]
[1772701555099,0.45976189,90.957,90.893,0.46949509]
[1772701555306,0.45976189,91.014,90.894,0.46949509]
[1772701555620,43.9238444,91.067,90.894,0.46949509]
[1772701555621,9.31524546,91.048,90.9,0.47988096]
[1772701555821,9.31524546,91.048,90.895,30.28432314]
[1772701555822,8.92523361,91.04,90.91,3.69383402]
[1772701556123,38.42817773,91.079,90.956,3.69383402]
[1772701556325,8.92523361,91.05,90.966,0.47988096]
[1772701556509,8.92523361,91.04,90.966,0.47988096]
[1772701557218,8.92523361,91.04,90.959,3.69383402]
[1772701557219,8.92523361,91.03,90.955,0.47988096]
[1772701557723,8.92523361,91.01,90.955,0.47988096]
[1772701557925,8.92523361,91.0,90.955,0.47988096]
[1772701558106,8.96547172,91.0,90.955,0.47988096]
[1772701558418,0.04023811,91.0,90.957,0.47988096]
[1772701558923,0.04023811,90.999,90.957,0.47988096]
[1772701559420,8.92523361,90.97,90.935,0.47988096]
[1772701560025,0.04023811,90.969,90.932,3.5329569]
[1772701560203,0.04023811,91.01,90.935,0.47988096]
[1772701560527,0.04023811,90.979,90.935,0.47988096]
[1772701560826,8.96547172,90.97,90.935,0.47988096]
[1772701561205,0.04023811,90.959,90.924,10.99819629]
[1772701562402,11.03229396,90.975,90.923,0.47988096]
[1772701562627,8.92523361,90.97,90.923,0.47988096]
[1772701562807,0.04023811,90.974,90.923,0.47988096]
[1772701563005,8.92523361,90.98,90.923,0.47988096]
[1772701563006,0.04023811,90.979,90.923,0.47988096]
[1772701563515,0.04023811,90.969,90.923,0.47988096]
[1772701564026,8.92523361,90.96,90.923,0.47988096]
[1772701564222,8.96547172,90.96,90.923,0.47988096]
[1772701564526,8.92523361,90.97,90.925,0.47988096]
[1772701564709,0.04023811,90.959,90.924,10.99819629]
[1772701565104,0.04023811,90.949,90.906,3.20984138]
[1772701565309,0.04023811,90.949,90.907,0.47988096]
[1772701566210,0.04023811,90.949,90.91,10.99978559]
[1772701566516,8.92523361,90.95,90.911,0.47988096]
[1772701567140,8.92523361,90.94,90.906,3.20984138]
[1772701567337,8.92523361,90.94,90.901,0.47988096]
[1772701567623,0.04023811,90.949,90.907,0.47988096]
[1772701567830,8.92523361,90.94,90.907,0.47988096]
[1772701568402,8.92523361,90.94,90.906,11.00026209]
[1772701568403,8.92523361,90.95,90.909,0.47988096]
[1772701568601,10.99546016,90.947,90.909,0.47988096]
[1772701568805,8.92523361,90.94,90.909,0.47988096]
[1772701569000,0.04023811,90.946,90.909,0.47988096]
[1772701569704,8.92523361,90.93,90.891,11.48207039]
[1772701569900,0.0402381,90.939,90.892,0.47988096]
[1772701570325,0.0402381,90.962,90.893,0.47988096]
[1772701570533,0.0402381,90.959,90.896,0.47988096]
[1772701571531,0.0402381,90.969,90.896,0.47988096]
[1772701572822,10.99239326,90.972,90.899,0.47988096]
[1772701573325,0.0402381,91.01,90.902,0.47988096]
[1772701573521,0.0402381,90.989,90.902,0.47988096]
[1772701573721,0.0402381,90.979,90.902,0.47988096]
[1772701573904,0.0402381,90.979,90.905,0.62204253]
[1772701574105,0.0402381,90.969,90.909,0.47988096]
[1772701574604,0.28432314,91.009,90.881,0.47988096]
[1772701574605,0.0402381,90.929,90.881,0.47988096]
[1772701574801,0.0402381,90.919,90.883,0.47988096]
[1772701575006,8.92523361,90.9,90.876,11.00393133]
[1772701575221,8.92523361,90.9,90.874,11.00424763]
[1772701575425,8.92523361,90.9,90.865,0.47988096]
[1772701575728,8.96547171,90.9,90.874,11.00424763]
[1772701575920,3.69383402,90.942,90.875,0.47988096]
[1772701575921,8.92523361,90.91,90.875,0.47988096]
[1772701576524,0.0402381,90.914,90.875,0.47988096]
[1772701576830,0.0402381,90.914,90.877,0.47988096]
[1772701576831,8.92523361,90.91,90.877,0.47988096]
[1772701577128,0.0402381,90.909,90.871,11.00458536]
[1772701577321,8.92523361,90.9,90.871,11.00458536]
[1772701577509,8.92523361,90.9,90.874,11.00424763]
[1772701577711,11.03903923,90.919,90.875,0.47988096]
[1772701577903,10.99759152,90.929,90.875,0.47988096]
[1772701578833,0.0402381,90.943,90.878,0.487863]
[1772701579035,8.92523361,90.95,90.878,0.487863]
[1772701579333,0.0402381,90.953,90.878,0.487863]
[1772701579708,0.0402381,90.953,90.88,0.487863]
[1772701580132,8.92523361,90.95,90.88,0.487863]
[1772701580424,10.99517311,90.949,90.883,0.487863]
[1772701580608,10.99463346,90.954,90.883,0.487863]
[1772701580808,10.99463346,90.954,90.886,0.487863]
[1772701581017,54.95729424,90.98,90.886,0.487863]
[1772701581018,10.99325127,90.965,90.886,0.487863]
[1772701581227,0.0402381,90.973,90.889,0.487863]
[1772701581434,0.0402381,90.969,90.891,0.487863]
[1772701581727,19.91797566,90.97,90.891,0.487863]
[1772701581728,8.92523361,90.96,90.891,0.487863]
[1772701582029,0.0402381,90.959,90.891,0.487863]
[1772701582231,0.0402381,90.969,90.891,0.487863]
[1772701582438,0.0402381,90.969,90.897,0.487863]
[1772701583820,0.0402381,90.959,90.897,0.487863]
[1772701584032,8.92523361,90.94,90.897,0.487863]
[1772701584419,19.92156705,90.94,90.899,0.487863]
[1772701585117,0.0402381,90.939,90.899,0.487863]
[1772701585338,10.99571298,90.945,90.899,0.487863]
[1772701586119,10.99516757,90.95,90.899,0.487863]
[1772701586429,7.33670504,90.949,90.899,0.487863]
[1772701586747,10.99541491,90.947,90.901,0.487863]
[1772701587246,10.99239326,90.972,90.902,0.47988096]
[1772701587423,7.34293891,90.971,90.902,0.47988096]
[1772701587620,7.34293891,90.97,90.902,0.47988096]
[1772701587840,7.34293891,90.969,90.902,0.47988096]
[1772701588126,7.34293891,90.968,90.902,0.47988096]
[1772701588433,7.34293891,90.967,90.902,0.47988096]
[1772701588760,10.99323915,90.965,90.904,0.47988096]
[1772701588923,7.34293891,90.964,90.904,0.47988096]
[1772701589452,7.34293891,90.963,90.906,0.47988096]
[1772701589623,7.34293891,90.962,90.906,0.47988096]
[1772701590045,7.34293891,90.962,90.907,0.47988096]
[1772701590228,7.34293891,90.961,90.907,0.47988096]
[1772701590436,7.34293891,90.96,90.907,0.47988096]
[1772701590629,7.34293891,90.959,90.911,0.47988096]
[1772701590832,10.99251576,90.971,90.913,0.47988096]
[1772701591034,7.3610848,90.97,90.913,0.47988096]
[1772701591230,10.99251576,90.971,90.913,3.14191414]
[1772701591428,10.99251576,90.971,90.914,0.47988096]
[1772701591835,0.0402381,90.97,90.917,0.47988096]
[1772701592161,0.0402381,90.97,90.912,0.28432314]
[1772701592162,0.0402381,90.949,90.914,10.99938629]
[1772701592462,0.0402381,90.949,90.909,11.00001]
[1772701592628,93.42815372,90.979,90.903,11.00072245]
[1772701592629,0.0402381,90.939,90.903,11.00072245]
[1772701592937,93.42815372,90.979,90.867,0.47988096]
[1772701592938,0.0402381,90.909,90.867,0.47988096]
[1772701593138,8.95534422,90.9,90.87,11.20467279]
[1772701593340,0.0402381,90.919,90.871,0.47988096]
[1772701593652,8.95534422,90.93,90.871,0.47988096]
[1772701593949,8.95534422,90.93,90.87,11.20467279]
[1772701593950,10.99759152,90.929,90.873,0.47988096]
[1772701594128,10.99759152,90.929,90.874,0.47988096]
[1772701594654,0.0402381,90.942,90.874,0.47988096]
[1772701594958,0.0402381,90.942,90.876,0.47988096]
[1772701595163,0.0402381,90.954,90.876,0.47988096]
[1772701595462,0.0402381,90.966,90.879,0.47988096]
[1772701595638,10.99262173,90.971,90.89,4.82477569]
[1772701595955,0.0402381,90.976,90.878,31.78204776]
[1772701595956,0.0402381,90.976,90.906,0.47988096]
[1772701597127,0.0402381,90.976,90.905,0.28432314]
[1772701597128,10.99035363,90.989,90.908,0.47988096]
[1772701597324,10.99035363,90.989,90.909,0.47988096]
[1772701597951,0.0402381,90.988,90.914,0.47988096]
[1772701598154,0.0402381,90.988,90.915,0.47988096]
[1772701599341,8.95534422,91.0,90.915,0.47988096]
[1772701599342,0.0402381,90.999,90.915,0.47988096]
[1772701600055,0.0402381,90.989,90.918,0.47988096]
[1772701600548,0.0402381,91.013,90.921,0.47988096]
[1772701600781,0.0402381,91.013,90.929,0.47988096]
[1772701601140,8.95534422,91.01,90.929,0.47988096]
[1772701601438,8.99558232,91.01,90.929,0.47988096]
[1772701601743,0.0402381,91.009,90.929,0.47988096]
[1772701602139,0.0402381,91.009,90.935,0.47988096]
[1772701602140,8.99558232,90.99,90.935,0.47988096]
[1772701602337,0.0402381,90.989,90.935,0.47988096]
[1772701602939,0.0402381,90.979,90.935,0.47988096]
[1772701603741,0.0402381,90.979,90.931,0.47988096]
[1772701604139,0.04023809,90.978,90.932,10.99722869]
[1772701606252,0.04023809,90.978,90.933,0.47988096]
[1772701606451,10.99154749,90.979,90.933,0.47988096]
[1772701606759,10.99154749,90.979,90.934,0.47988096]
[1772701607860,11.03057758,90.989,90.936,0.47988096]
[1772701608062,0.04023809,90.999,90.937,0.47988096]
[1772701608841,11.02936983,90.999,90.937,0.47988096]
[1772701609263,0.04023809,90.998,90.937,0.47988096]
[1772701609646,8.95534422,90.99,90.937,0.47988096]
[1772701609877,0.04023809,90.989,90.94,0.48778533]
[1772701610662,0.04023809,91.009,90.94,0.48778533]
[1772701610959,0.04023809,91.016,90.943,0.48778533]
[1772701611155,10.98695848,91.017,90.943,0.48778533]
[1772701611361,0.04023809,91.016,90.943,0.48778533]
[1772701611958,0.04023809,91.025,90.946,0.48778533]
[1772701612266,0.04023809,91.025,90.947,0.48778533]
[1772701612640,0.04023809,91.025,90.947,4.18161935]
[1772701612844,10.98497121,91.034,90.959,0.48778533]
[1772701613144,10.98497121,91.034,90.961,0.48778533]
[1772701614061,0.04023809,91.037,90.967,0.48778533]
[1772701614272,0.04023809,91.019,90.967,0.48778533]
[1772701615787,0.04023809,91.009,90.967,0.48778533]
[1772701615967,8.95534422,91.01,90.947,0.41714163]
[1772701615968,8.95534422,91.02,90.969,0.48778533]
[1772701616165,0.04023809,91.009,90.969,0.48778533]
[1772701616470,54.91599391,91.049,90.961,10.99360622]
[1772701616471,0.04023809,90.999,90.961,10.99360622]
[1772701616764,54.91599391,91.049,90.95,10.99505222]
[1772701616765,0.04023809,90.989,90.95,10.99505222]
[1772701616952,8.95534422,91.02,90.951,0.48778533]
[1772701616953,0.04023809,91.019,90.951,0.48778533]
[1772701617153,0.04023809,91.019,90.952,0.48778533]
[1772701617660,0.04023809,91.009,90.952,0.48778533]
[1772701618044,0.04023809,91.008,90.955,0.48778533]
[1772701620041,0.04023809,91.008,90.957,0.48778533]
[1772701620565,10.98792427,91.009,90.957,0.48778533]
[1772701620763,10.98695848,91.017,90.958,0.48778533]
[1772701620951,0.04023809,91.029,90.958,0.48778533]
[1772701621346,10.98551011,91.029,90.958,0.48778533]
[1772701621964,0.04023809,91.038,90.96,0.28432314]
[1772701622168,10.98309701,91.049,90.967,0.48778533]
[1772701622666,0.04023809,91.048,90.967,0.48778533]
[1772701623071,0.04023809,91.048,90.967,30.48778533]
[1772701623255,0.04023809,91.048,90.972,0.48778533]
[1772701623767,10.98309701,91.049,90.972,0.48778533]
[1772701623966,10.98213207,91.057,90.977,0.48778533]
[1772701624173,0.04023809,91.068,90.983,0.48778533]
[1772701625249,38.4323974,91.069,90.989,0.48778533]
[1772701625250,10.98068497,91.069,90.989,0.48778533]
[1772701625449,0.04023809,91.068,90.989,0.48778533]
[1772701625871,0.04023809,91.049,90.989,0.48778533]
[1772701626070,0.04023809,91.049,90.992,0.48778533]
[1772701626459,0.04023809,91.049,90.994,0.48778533]
[1772701627367,0.04023809,91.039,90.994,0.48778533]
[1772701627570,38.43661801,91.059,90.994,0.48778533]
[1772701627571,0.04023809,91.049,90.994,0.48778533]
[1772701627767,0.04023809,91.058,90.994,0.48778533]
[1772701628072,0.04023809,91.058,90.997,0.48778533]
[1772701629675,0.04023809,91.049,91.0,0.48778533]
[1772701630964,0.04023809,91.039,91.0,0.48778533]
[1772701631472,104.9,91.079,90.998,10.98925251]
[1772701631473,0.04023809,91.029,90.998,10.98925251]
[1772701631675,0.04023809,91.029,90.991,0.48778533]
[1772701631676,0.04023809,91.028,90.992,10.98997714]
[1772701632051,0.04023809,91.028,90.993,0.48778533]
[1772701632453,0.04023809,91.028,90.992,10.98997714]
[1772701633049,10.98551011,91.029,90.993,0.48778533]
[1772701633751,10.98309701,91.049,90.996,0.48778533]
[1772701633954,0.04023809,91.058,90.996,0.48778533]
[1772701633955,10.98256629,91.054,90.996,0.48778533]
[1772701634380,0.04023809,91.053,90.996,0.48778533]
[1772701634681,0.04023809,91.049,90.996,0.48778533]
[1772701635575,10.98256629,91.054,90.996,0.48778533]
[1772701636076,0.04023809,91.059,90.998,0.48778533]
[1772701636276,0.04023809,91.059,90.999,0.48778533]
[1772701636466,38.4323974,91.069,90.999,0.48778533]
[1772701636467,0.04023809,91.049,90.999,0.48778533]
[1772701636779,0.04023809,91.039,90.999,0.48778533]
[1772701637480,8.95534422,91.06,90.999,0.48778533]
[1772701637666,0.04023809,91.059,90.999,0.48778533]
[1772701638183,0.04023809,91.058,91.001,0.48778533]
[1772701638360,0.04023809,91.049,91.001,0.48778533]
[1772701638561,0.04023809,91.039,91.001,0.48778533]
[1772701638866,0.04023809,91.039,91.0,10.98901098]
[1772701639366,0.04023809,91.039,91.001,0.47988096]
[1772701639759,0.04023809,91.049,91.001,0.47988096]
[1772701640658,0.04023809,91.048,91.002,11.46865043]
[1772701640864,0.04023809,91.039,91.002,11.46865043]
[1772701641170,0.04023809,91.039,90.997,10.98929466]
[1772701641364,0.04023809,91.039,90.997,11.46917562]
[1772701641573,0.04023809,91.039,90.998,0.47988096]
[1772701642280,10.98309701,91.049,90.998,0.47988096]
[1772701642478,10.98309701,91.049,90.999,0.47988096]
[1772701642790,27.45475252,91.059,91.002,0.47988096]
[1772701642791,0.04023809,91.053,91.002,0.47988096]
[1772701643162,0.04023809,91.049,91.002,0.47988096]
[1772701643875,0.04023809,91.039,91.002,0.47988096]
[1772701644070,0.04023809,91.049,91.002,0.47988096]
[1772701644274,8.95534422,91.04,91.002,0.47988096]
[1772701644459,0.04023809,91.039,91.002,0.47988096]
[1772701644665,0.04023809,91.038,90.993,11.46973732]
[1772701644864,0.04023809,91.038,90.994,0.47988096]
[1772701645268,10.98430343,91.039,90.995,0.47988096]
[1772701645577,10.98189086,91.059,90.995,0.47988096]
[1772701646165,0.04023809,91.058,90.995,0.47988096]
[1772701646683,0.04023809,91.048,90.996,10.98949404]
[1772701646873,0.04023809,91.048,90.997,0.47988096]
[1772701648284,38.44083954,91.049,90.997,0.47988096]
[1772701648585,10.98309701,91.049,90.998,0.49005076]
[1772701648781,0.04023809,91.058,91.001,0.49005076]
[1772701648986,38.43661801,91.059,91.001,0.49005076]
[1772701648987,0.04023809,91.049,91.001,0.49005076]
[1772701650801,0.04023809,91.049,91.003,0.49005076]
[1772701651788,8.95534422,91.04,90.996,10.98943813]
[1772701651976,0.04023809,91.039,90.996,10.98943813]
[1772701652376,0.04023809,91.039,90.997,0.49005076]
[1772701652761,0.04023809,91.038,90.997,0.49005076]
[1772701653168,0.04023809,91.038,90.998,10.98925251]
[1772701653569,0.04023809,91.038,90.972,54.96193027]
[1772701653570,0.04023809,91.029,90.984,0.49005076]
[1772701654288,0.04023809,91.019,90.984,0.49005076]
[1772701654681,0.04023809,91.037,90.984,0.49005076]
[1772701654986,0.04023809,91.037,90.986,0.49005076]
[1772701655187,0.04023809,91.029,90.986,0.49005076]
[1772701656186,0.04023809,91.047,90.986,0.49005076]
[1772701656379,8.94230625,91.04,90.986,0.49005076]
[1772701656582,0.04023809,91.039,90.986,0.49005076]
[1772701657185,0.04023809,91.039,90.977,0.0922356]
[1772701657186,10.98387606,91.043,90.989,0.49005076]
[1772701657394,38.48366622,91.043,90.989,0.49005076]
[1772701657698,11.02411415,91.043,90.989,0.49005076]
[1772701657881,38.44342813,91.043,90.989,0.49005076]
[1772701658088,0.04023809,91.042,90.989,0.49005076]
[1772701658689,10.98387606,91.043,90.989,0.49005076]
[1772701659283,27.45626895,91.054,90.992,0.49005076]
[1772701659483,27.49650704,91.054,90.992,0.49005076]
[1772701659683,8.94230625,91.05,90.992,0.49005076]
[1772701659999,0.04023808,91.049,90.992,0.49005076]
[1772701661106,27.45626895,91.054,90.992,0.49005076]
[1772701661303,38.44083954,91.049,90.993,38.46449726]
[1772701661604,0.04023808,91.048,90.995,0.49005076]
[1772701661978,38.44083954,91.049,90.995,0.49005076]
[1772701661979,0.04023808,91.039,90.995,0.49005076]
[1772701663002,8.94230625,91.03,90.995,0.49005076]
[1772701663386,0.04023808,91.039,90.997,0.49005076]
[1772701665201,0.04023808,91.029,90.996,10.98949404]
[1772701666104,0.04023808,91.029,90.991,0.49005076]
[1772701666310,8.98254433,91.04,90.991,0.49005076]
[1772701666501,0.04023808,91.039,90.991,0.49005076]
[1772701667289,8.98254433,91.05,90.991,0.49005076]
[1772701667817,0.04023808,91.049,90.991,0.49005076]
[1772701668705,38.44083954,91.049,90.994,0.47988096]
[1772701669010,10.98309701,91.049,90.994,0.47988096]
[1772701669990,8.94230625,91.04,90.994,0.47988096]
[1772701670210,10.98309701,91.049,90.994,0.47988096]
[1772701670790,0.04023808,91.058,90.996,0.47988096]
[1772701671896,0.04023808,91.058,90.999,0.47988096]
[1772701672512,38.43677172,91.059,90.999,0.47988096]
[1772701673608,38.43677172,91.059,91.001,0.7642041]
[1772701673806,38.43677172,91.059,91.002,0.47988096]
[1772701674819,0.04023808,91.058,91.005,0.47988096]
[1772701675002,8.98254433,91.05,91.005,0.47988096]
[1772701675400,10.9814035,91.064,91.005,0.47988096]
[1772701675601,0.04023808,91.063,91.005,0.47988096]
[1772701675805,8.98254433,91.06,91.005,0.47988096]
[1772701676117,10.97947935,91.079,91.008,0.47988096]
[1772701677803,0.1,91.08,91.011,0.47988096]
[1772701678018,0.04023808,91.079,91.011,0.47988096]
[1772701678815,0.04023808,91.079,91.013,0.47988096]
[1772701679321,0.04023808,91.078,91.016,0.47988096]
[1772701680708,0.04023808,91.069,91.016,0.47988096]
[1772701681109,38.42817773,91.079,91.016,0.47988096]
[1772701681316,38.42817773,91.079,91.019,0.47988096]
[1772701681629,0.04023808,91.078,91.019,0.47988096]
[1772701681825,0.04023808,91.069,91.019,0.47988096]
[1772701682623,38.42817773,91.079,91.019,0.47988096]
[1772701682624,0.04023808,91.059,91.019,0.47988096]
[1772701683028,0.04023808,91.049,91.017,10.98695848]
[1772701683365,0.04023808,91.049,91.017,11.46683944]
[1772701683919,0.04023808,91.049,91.018,0.47988096]
[1772701684828,0.04023808,91.049,91.019,10.98671705]
[1772701685021,0.04023808,91.049,91.02,0.47988096]
[1772701685332,0.04023808,91.079,91.021,0.47988096]
[1772701686503,0.1,91.08,91.026,0.7642041]
[1772701686703,0.1,91.08,91.027,0.47988096]
[1772701687518,10.97624435,91.106,91.031,0.46079185]
[1772701687714,10.97624435,91.106,91.036,0.46079185]